[Event "Titled Tuesday Blitz February 21 Early 2023"]
[White "Wahedi, Ahmad Siar"]
[Black "Yurovskykh, Oleksandr"]
[WhiteFideId "4651260"]
[BlackFideId "14134020"]
[WhiteElo "2274"]
[BlackElo "2328"]
[Result "1-0"]
[Round "05"]
[TimeControl "180+2"]
[Date "2023.02.21"]
[WhiteClock "0:00:39"]
[BlackClock "0:00:01"]

1. e4 {[%clk 0:02:54]}  d5 {[%clk 0:02:55]} 2. exd5 {[%clk 0:02:54]}  Qxd5 {[%clk 0:02:54]} 3. Nc3 {[%clk 0:02:53]}  Qd8 {[%clk 0:02:54]} 4. d4 {[%clk 0:02:53]}  Nf6 {[%clk 0:02:54]} 5. Bc4 {[%clk 0:02:53]}  a6 {[%clk 0:02:51]} 6. Nf3 {[%clk 0:02:50]}  b5 {[%clk 0:02:51]} 7. Bb3 {[%clk 0:02:50]}  c5 {[%clk 0:02:43]} 8. dxc5 {[%clk 0:02:48]}  Qxd1+ {[%clk 0:02:43]} 9. Nxd1 {[%clk 0:02:47]}  e6 {[%clk 0:02:44]} 10. a4 {[%clk 0:02:35]}  b4 {[%clk 0:02:42]} 11. Be3 {[%clk 0:02:25]}  Bb7 {[%clk 0:02:38]} 12. O-O {[%clk 0:02:23]}  Nbd7 {[%clk 0:02:36]} 13. a5 {[%clk 0:02:15]}  Bxc5 {[%clk 0:02:34]} 14. Ba4 {[%clk 0:02:06]}  Ke7 {[%clk 0:02:32]} 15. Bg5 {[%clk 0:01:57]}  h6 {[%clk 0:02:21]} 16. Bh4 {[%clk 0:01:54]}  Bxf3 {[%clk 0:02:19]} 17. gxf3 {[%clk 0:01:54]}  Rac8 {[%clk 0:02:20]} 18. c3 {[%clk 0:01:50]}  Ne5 {[%clk 0:02:18]} 19. Kg2 {[%clk 0:01:46]}  g5 {[%clk 0:01:59]} 20. Bg3 {[%clk 0:01:45]}  Nd3 {[%clk 0:01:59]} 21. Bc2 {[%clk 0:01:37]}  Nf4+ {[%clk 0:01:55]} 22. Kh1 {[%clk 0:01:28]}  Rhd8 {[%clk 0:01:44]} 23. Ne3 {[%clk 0:01:20]}  Rd2 {[%clk 0:01:37]} 24. Ba4 {[%clk 0:01:16]}  Rcd8 {[%clk 0:01:34]} 25. Nc4 {[%clk 0:01:11]}  R2d5 {[%clk 0:01:19]} 26. Rad1 {[%clk 0:01:02]}  Rxd1 {[%clk 0:01:13]} 27. Rxd1 {[%clk 0:01:01]}  Rxd1+ {[%clk 0:01:14]} 28. Bxd1 {[%clk 0:01:02]}  bxc3 {[%clk 0:01:15]} 29. bxc3 {[%clk 0:01:01]}  N6d5 {[%clk 0:01:15]} 30. Bxf4 {[%clk 0:00:56]}  gxf4 {[%clk 0:01:13]} 31. Ne5 {[%clk 0:00:52]}  Nxc3 {[%clk 0:01:10]} 32. Bc2 {[%clk 0:00:52]}  Bxf2 {[%clk 0:00:44]} 33. Bd3 {[%clk 0:00:52]}  Nb5 {[%clk 0:00:41]} 34. Nc6+ {[%clk 0:00:51]}  Kd6 {[%clk 0:00:31]} 35. Nb4 {[%clk 0:00:51]}  Nc7 {[%clk 0:00:29]} 36. Nxa6 {[%clk 0:00:50]}  Nxa6 {[%clk 0:00:29]} 37. Bxa6 {[%clk 0:00:51]}  Be1 {[%clk 0:00:30]} 38. Kg2 {[%clk 0:00:50]}  Ke5 {[%clk 0:00:26]} 39. Bb5 {[%clk 0:00:49]}  Bxa5 {[%clk 0:00:26]} 40. Kf1 {[%clk 0:00:49]}  Kf6 {[%clk 0:00:19]} 41. Ke2 {[%clk 0:00:49]}  Kg5 {[%clk 0:00:19]} 42. Be8 {[%clk 0:00:48]}  f6 {[%clk 0:00:17]} 43. Bd7 {[%clk 0:00:48]}  e5 {[%clk 0:00:17]} 44. h3 {[%clk 0:00:48]}  Bb6 {[%clk 0:00:16]} 45. Kf1 {[%clk 0:00:48]}  Kg6 {[%clk 0:00:15]} 46. Kg2 {[%clk 0:00:48]}  Kg5 {[%clk 0:00:14]} 47. Be6 {[%clk 0:00:47]}  Kg6 {[%clk 0:00:10]} 48. Bd7 {[%clk 0:00:47]}  Kf7 {[%clk 0:00:11]} 49. Bf5 {[%clk 0:00:47]}  Ke7 {[%clk 0:00:12]} 50. h4 {[%clk 0:00:46]}  Kd6 {[%clk 0:00:13]} 51. h5 {[%clk 0:00:47]}  Kc5 {[%clk 0:00:13]} 52. Kh3 {[%clk 0:00:47]}  Kd4 {[%clk 0:00:13]} 53. Kg4 {[%clk 0:00:47]}  Ke3 {[%clk 0:00:14]} 54. Be4 {[%clk 0:00:48]}  Bd8 {[%clk 0:00:04]} 55. Kf5 {[%clk 0:00:49]}  Ke2 {[%clk 0:00:03]} 56. Kg6 {[%clk 0:00:48]}  Kf2 {[%clk 0:00:04]} 57. Kxh6 {[%clk 0:00:46]}  f5 {[%clk 0:00:04]} 58. Bd5 {[%clk 0:00:45]}  Ke3 {[%clk 0:00:02]} 59. Kg6 {[%clk 0:00:44]}  e4 {[%clk 0:00:02]} 60. h6 {[%clk 0:00:41]}  Bb6 {[%clk 0:00:01]} 61. Kxf5 {[%clk 0:00:39]}  exf3 {[%clk 0:00:01]} 62. Kg4 {[%clk 0:00:39]} 1-0


[Site "https://www.chess.com"]

[Event "Titled Tuesday Blitz February 21 Early 2023"]
[White "Manukyan, Sargis V."]
[Black "gshwbedhkhd"]
[WhiteFideId "13303465"]
[WhiteElo "2253"]
[BlackElo "2556"]
[Result "1-0"]
[Round "05"]
[TimeControl "180+2"]
[Date "2023.02.21"]
[WhiteClock "0:00:12"]
[BlackClock "0:00:02"]

1. Nf3 {[%clk 0:03:00]}  f5 {[%clk 0:02:58]} 2. d3 {[%clk 0:02:59]}  Nc6 {[%clk 0:02:51]} 3. g3 {[%clk 0:02:59]}  Nf6 {[%clk 0:02:48]} 4. Bg2 {[%clk 0:02:56]}  g6 {[%clk 0:02:48]} 5. O-O {[%clk 0:02:56]}  Bg7 {[%clk 0:02:49]} 6. Nc3 {[%clk 0:02:57]}  O-O {[%clk 0:02:47]} 7. e4 {[%clk 0:02:57]}  d6 {[%clk 0:02:46]} 8. Re1 {[%clk 0:02:53]}  e5 {[%clk 0:02:40]} 9. Bg5 {[%clk 0:02:51]}  h6 {[%clk 0:02:39]} 10. Bxf6 {[%clk 0:02:49]}  Qxf6 {[%clk 0:02:40]} 11. Nd5 {[%clk 0:02:47]}  Qf7 {[%clk 0:02:40]} 12. c3 {[%clk 0:02:43]}  f4 {[%clk 0:02:29]} 13. b4 {[%clk 0:02:37]}  g5 {[%clk 0:02:18]} 14. Nd2 {[%clk 0:02:32]}  h5 {[%clk 0:02:13]} 15. f3 {[%clk 0:02:25]}  Be6 {[%clk 0:02:06]} 16. c4 {[%clk 0:02:15]}  Nd4 {[%clk 0:01:57]} 17. Nb3 {[%clk 0:02:10]}  Nxb3 {[%clk 0:01:28]} 18. axb3 {[%clk 0:02:08]}  c6 {[%clk 0:01:28]} 19. Nc3 {[%clk 0:02:08]}  g4 {[%clk 0:01:28]} 20. Rf1 {[%clk 0:02:04]}  Qg6 {[%clk 0:01:26]} 21. fxg4 {[%clk 0:01:50]}  hxg4 {[%clk 0:01:24]} 22. Rf2 {[%clk 0:01:36]}  Bh6 {[%clk 0:01:20]} 23. Qe1 {[%clk 0:01:28]}  Bg5 {[%clk 0:01:15]} 24. Raa2 {[%clk 0:01:27]}  Qh6 {[%clk 0:01:14]} 25. Nd1 {[%clk 0:01:21]}  Rf7 {[%clk 0:01:09]} 26. d4 {[%clk 0:01:18]}  f3 {[%clk 0:01:00]} 27. Bf1 {[%clk 0:01:18]}  exd4 {[%clk 0:01:00]} 28. e5 {[%clk 0:01:09]}  Be3 {[%clk 0:00:58]} 29. exd6 {[%clk 0:01:08]}  Rh7 {[%clk 0:00:54]} 30. h4 {[%clk 0:01:06]}  Re8 {[%clk 0:00:23]} 31. Bd3 {[%clk 0:01:05]}  Rd7 {[%clk 0:00:20]} 32. Kh2 {[%clk 0:00:56]}  Bxf2 {[%clk 0:00:19]} 33. Nxf2 {[%clk 0:00:57]}  Bf7 {[%clk 0:00:18]} 34. Qf1 {[%clk 0:00:48]}  Qe6 {[%clk 0:00:13]} 35. Ne4 {[%clk 0:00:41]}  Rxd6 {[%clk 0:00:07]} 36. Ng5 {[%clk 0:00:36]}  Qf6 {[%clk 0:00:06]} 37. Rf2 {[%clk 0:00:31]}  Re3 {[%clk 0:00:05]} 38. Qb1 {[%clk 0:00:21]}  Rd8 {[%clk 0:00:04]} 39. Bf5 {[%clk 0:00:16]}  Rde8 {[%clk 0:00:04]} 40. Bxg4 {[%clk 0:00:16]}  Re2 {[%clk 0:00:04]} 41. Rxe2 {[%clk 0:00:13]}  Rxe2+ {[%clk 0:00:03]} 42. Kh3 {[%clk 0:00:14]}  Bg6 {[%clk 0:00:03]} 43. Qa1 {[%clk 0:00:12]}  Re3 {[%clk 0:00:02]} 44. Qxa7 {[%clk 0:00:12]}  f2 {[%clk 0:00:02]} 45. Qb8+ {[%clk 0:00:12]} 1-0


[Site "https://www.chess.com"]

[Event "Titled Tuesday Blitz February 21 Early 2023"]
[White "Matko, Ognjen"]
[Black "Fiorito, Francisco"]
[WhiteFideId "14509717"]
[BlackFideId "180165"]
[WhiteElo "2295"]
[BlackElo "2305"]
[Result "1-0"]
[Round "05"]
[TimeControl "180+2"]
[Date "2023.02.21"]
[WhiteClock "0:00:20"]
[BlackClock "0:00:02"]

1. e4 {[%clk 0:03:00]}  c5 {[%clk 0:02:59]} 2. Nf3 {[%clk 0:02:59]}  Nc6 {[%clk 0:02:59]} 3. d4 {[%clk 0:02:59]}  cxd4 {[%clk 0:02:57]} 4. Nxd4 {[%clk 0:03:00]}  g6 {[%clk 0:02:58]} 5. c4 {[%clk 0:02:59]}  Nf6 {[%clk 0:02:58]} 6. Nc3 {[%clk 0:02:58]}  d6 {[%clk 0:02:58]} 7. Be2 {[%clk 0:02:55]}  Nxd4 {[%clk 0:02:58]} 8. Qxd4 {[%clk 0:02:54]}  Bg7 {[%clk 0:02:59]} 9. Bg5 {[%clk 0:02:48]}  h6 {[%clk 0:02:54]} 10. Be3 {[%clk 0:02:39]}  O-O {[%clk 0:02:49]} 11. Qd2 {[%clk 0:02:38]}  Kh7 {[%clk 0:02:44]} 12. O-O-O {[%clk 0:02:36]}  Qa5 {[%clk 0:02:35]} 13. f3 {[%clk 0:02:33]}  Be6 {[%clk 0:02:34]} 14. Kb1 {[%clk 0:02:29]}  Rfc8 {[%clk 0:02:34]} 15. Nd5 {[%clk 0:02:28]}  Qxd2 {[%clk 0:02:32]} 16. Rxd2 {[%clk 0:02:29]}  Bxd5 {[%clk 0:02:32]} 17. cxd5 {[%clk 0:02:27]}  Nd7 {[%clk 0:02:32]} 18. Rc1 {[%clk 0:02:25]}  Rxc1+ {[%clk 0:02:31]} 19. Kxc1 {[%clk 0:02:26]}  Rc8+ {[%clk 0:02:32]} 20. Rc2 {[%clk 0:02:27]}  Rxc2+ {[%clk 0:02:31]} 21. Kxc2 {[%clk 0:02:28]}  b6 {[%clk 0:02:29]} 22. Bb5 {[%clk 0:02:25]}  Ne5 {[%clk 0:02:26]} 23. h3 {[%clk 0:02:20]}  g5 {[%clk 0:02:20]} 24. b4 {[%clk 0:02:16]}  Kg8 {[%clk 0:02:12]} 25. a4 {[%clk 0:02:15]}  Ng6 {[%clk 0:01:56]} 26. a5 {[%clk 0:02:10]}  Nf4 {[%clk 0:01:54]} 27. axb6 {[%clk 0:01:52]}  axb6 {[%clk 0:01:53]} 28. Bxb6 {[%clk 0:01:52]}  Nxg2 {[%clk 0:01:49]} 29. Bf1 {[%clk 0:01:50]}  Ne1+ {[%clk 0:01:46]} 30. Kb3 {[%clk 0:01:45]}  Nxf3 {[%clk 0:01:45]} 31. b5 {[%clk 0:01:40]}  Nd2+ {[%clk 0:01:28]} 32. Kc2 {[%clk 0:01:39]}  Nxf1 {[%clk 0:01:28]} 33. Bf2 {[%clk 0:01:34]}  Ng3 {[%clk 0:00:46]} 34. b6 {[%clk 0:01:30]}  Nxe4 {[%clk 0:00:45]} 35. b7 {[%clk 0:01:29]}  Nxf2 {[%clk 0:00:45]} 36. b8=Q+ {[%clk 0:01:29]}  Kh7 {[%clk 0:00:45]} 37. Qc8 {[%clk 0:01:24]}  Kg6 {[%clk 0:00:40]} 38. Kd2 {[%clk 0:01:24]}  Ne4+ {[%clk 0:00:38]} 39. Kd3 {[%clk 0:01:18]}  Nc5+ {[%clk 0:00:38]} 40. Ke3 {[%clk 0:01:18]}  h5 {[%clk 0:00:37]} 41. Qe8 {[%clk 0:01:15]}  Bf6 {[%clk 0:00:31]} 42. Qg8+ {[%clk 0:01:13]}  Bg7 {[%clk 0:00:31]} 43. Qb8 {[%clk 0:01:12]}  h4 {[%clk 0:00:29]} 44. Qe8 {[%clk 0:01:07]}  Bf6 {[%clk 0:00:26]} 45. Kf3 {[%clk 0:01:06]}  Nd3 {[%clk 0:00:22]} 46. Qc8 {[%clk 0:00:59]}  Ne5+ {[%clk 0:00:20]} 47. Ke4 {[%clk 0:00:58]}  Bg7 {[%clk 0:00:18]} 48. Qf5+ {[%clk 0:00:56]}  Kh6 {[%clk 0:00:19]} 49. Ke3 {[%clk 0:00:49]}  Bf6 {[%clk 0:00:19]} 50. Kf2 {[%clk 0:00:47]}  Kg7 {[%clk 0:00:18]} 51. Ke2 {[%clk 0:00:46]}  Ng6 {[%clk 0:00:18]} 52. Kd3 {[%clk 0:00:43]}  Nf4+ {[%clk 0:00:18]} 53. Kc4 {[%clk 0:00:43]}  Ng2 {[%clk 0:00:17]} 54. Kb5 {[%clk 0:00:41]}  Ne3 {[%clk 0:00:13]} 55. Qe4 {[%clk 0:00:40]}  Nd1 {[%clk 0:00:10]} 56. Kc6 {[%clk 0:00:39]}  Nc3 {[%clk 0:00:08]} 57. Qf5 {[%clk 0:00:38]}  Ne2 {[%clk 0:00:05]} 58. Kd7 {[%clk 0:00:36]}  Nd4 {[%clk 0:00:06]} 59. Qe4 {[%clk 0:00:34]}  Nb5 {[%clk 0:00:04]} 60. Qb1 {[%clk 0:00:28]}  Nc3 {[%clk 0:00:03]} 61. Qd3 {[%clk 0:00:28]}  Na4 {[%clk 0:00:02]} 62. Ke8 {[%clk 0:00:27]}  Nc5 {[%clk 0:00:03]} 63. Qe3 {[%clk 0:00:25]}  Nb7 {[%clk 0:00:02]} 64. Qe2 {[%clk 0:00:21]}  Nc5 {[%clk 0:00:01]} 65. Qh5 {[%clk 0:00:20]}  Ne4 {[%clk 0:00:02]} 66. Qxf7+ {[%clk 0:00:21]}  Kh6 {[%clk 0:00:03]} 67. Kf8 {[%clk 0:00:20]}  Nc5 {[%clk 0:00:02]} 68. Kg8 {[%clk 0:00:20]}  Ne4 {[%clk 0:00:02]} 69. Qh7# {[%clk 0:00:20]} 1-0


[Site "https://www.chess.com"]

[Event "Titled Tuesday Blitz February 21 Early 2023"]
[White "Martin Duque, Jesus"]
[Black "Andrews, Todd"]
[WhiteFideId "2208954"]
[BlackFideId "2012456"]
[WhiteElo "2386"]
[BlackElo "2220"]
[Result "1-0"]
[Round "05"]
[TimeControl "180+2"]
[Date "2023.02.21"]
[WhiteClock "0:01:34"]
[BlackClock "0:00:14"]

1. c4 {[%clk 0:02:59]}  e5 {[%clk 0:02:59]} 2. e3 {[%clk 0:02:58]}  Nf6 {[%clk 0:02:55]} 3. a3 {[%clk 0:02:58]}  d5 {[%clk 0:02:53]} 4. cxd5 {[%clk 0:02:57]}  Nxd5 {[%clk 0:02:54]} 5. Nc3 {[%clk 0:02:57]}  Nc6 {[%clk 0:02:50]} 6. Qc2 {[%clk 0:02:54]}  Be7 {[%clk 0:02:49]} 7. Nf3 {[%clk 0:02:52]}  O-O {[%clk 0:02:48]} 8. Bb5 {[%clk 0:02:51]}  Nxc3 {[%clk 0:02:27]} 9. bxc3 {[%clk 0:02:51]}  Bd6 {[%clk 0:02:21]} 10. d4 {[%clk 0:02:48]}  exd4 {[%clk 0:02:18]} 11. cxd4 {[%clk 0:02:48]}  Ne7 {[%clk 0:02:13]} 12. Bb2 {[%clk 0:02:47]}  Bf5 {[%clk 0:02:12]} 13. Bd3 {[%clk 0:02:48]}  Bxd3 {[%clk 0:02:07]} 14. Qxd3 {[%clk 0:02:49]}  Re8 {[%clk 0:01:58]} 15. Rc1 {[%clk 0:02:39]}  Ng6 {[%clk 0:01:56]} 16. O-O {[%clk 0:02:38]}  Nh4 {[%clk 0:01:48]} 17. Nxh4 {[%clk 0:02:22]}  Qxh4 {[%clk 0:01:49]} 18. g3 {[%clk 0:02:21]}  Qh3 {[%clk 0:01:48]} 19. Qb5 {[%clk 0:02:16]}  b6 {[%clk 0:01:31]} 20. Qd3 {[%clk 0:02:15]}  Re6 {[%clk 0:01:24]} 21. e4 {[%clk 0:02:15]}  Rh6 {[%clk 0:01:19]} 22. Rfe1 {[%clk 0:02:15]}  Qxh2+ {[%clk 0:01:19]} 23. Kf1 {[%clk 0:02:15]}  Rf6 {[%clk 0:01:07]} 24. Rc2 {[%clk 0:01:47]}  Bxg3 {[%clk 0:01:05]} 25. Qe3 {[%clk 0:01:47]}  Qh1+ {[%clk 0:00:34]} 26. Ke2 {[%clk 0:01:47]}  Rxf2+ {[%clk 0:00:34]} 27. Qxf2 {[%clk 0:01:46]}  Qxe4+ {[%clk 0:00:33]} 28. Kd1 {[%clk 0:01:43]}  Qd3+ {[%clk 0:00:26]} 29. Qd2 {[%clk 0:01:43]}  Qxd2+ {[%clk 0:00:21]} 30. Kxd2 {[%clk 0:01:43]}  Bxe1+ {[%clk 0:00:22]} 31. Kxe1 {[%clk 0:01:44]}  Re8+ {[%clk 0:00:22]} 32. Kd2 {[%clk 0:01:44]}  h5 {[%clk 0:00:22]} 33. Rxc7 {[%clk 0:01:44]}  a5 {[%clk 0:00:19]} 34. Rc6 {[%clk 0:01:41]}  h4 {[%clk 0:00:16]} 35. Rxb6 {[%clk 0:01:36]}  g5 {[%clk 0:00:16]} 36. d5 {[%clk 0:01:34]}  h3 {[%clk 0:00:15]} 37. Rh6 {[%clk 0:01:34]}  g4 {[%clk 0:00:14]} 38. Rh8# {[%clk 0:01:34]} 1-0


[Site "https://www.chess.com"]

[Event "Titled Tuesday Blitz February 21 Early 2023"]
[White "Vovk, Orest"]
[Black "Jovic, Stanoje"]
[WhiteFideId "14113490"]
[BlackFideId "905020"]
[WhiteElo "2315"]
[BlackElo "2075"]
[Result "1-0"]
[Round "05"]
[TimeControl "180+2"]
[Date "2023.02.21"]
[WhiteClock "0:00:07"]
[BlackClock "0:00:04"]

1. c4 {[%clk 0:02:48]}  e5 {[%clk 0:02:59]} 2. Nc3 {[%clk 0:02:46]}  Nf6 {[%clk 0:02:57]} 3. g3 {[%clk 0:02:26]}  c6 {[%clk 0:02:56]} 4. Bg2 {[%clk 0:02:26]}  d5 {[%clk 0:02:55]} 5. cxd5 {[%clk 0:02:24]}  cxd5 {[%clk 0:02:55]} 6. d4 {[%clk 0:02:25]}  exd4 {[%clk 0:02:54]} 7. Qxd4 {[%clk 0:02:25]}  Nc6 {[%clk 0:02:54]} 8. Qh4 {[%clk 0:02:24]}  d4 {[%clk 0:02:51]} 9. Ne4 {[%clk 0:02:23]}  Bb4+ {[%clk 0:02:43]} 10. Bd2 {[%clk 0:02:21]}  Bxd2+ {[%clk 0:02:38]} 11. Nxd2 {[%clk 0:02:21]}  d3 {[%clk 0:02:30]} 12. e3 {[%clk 0:02:11]}  O-O {[%clk 0:02:23]} 13. Ngf3 {[%clk 0:02:11]}  Bg4 {[%clk 0:02:14]} 14. O-O {[%clk 0:02:10]}  Bxf3 {[%clk 0:02:05]} 15. Nxf3 {[%clk 0:02:09]}  Qb6 {[%clk 0:02:01]} 16. b3 {[%clk 0:02:05]}  Rfd8 {[%clk 0:01:56]} 17. Rad1 {[%clk 0:02:05]}  a5 {[%clk 0:01:53]} 18. Qc4 {[%clk 0:01:52]}  Qa6 {[%clk 0:01:44]} 19. Qxa6 {[%clk 0:01:20]}  Rxa6 {[%clk 0:01:43]} 20. Rd2 {[%clk 0:01:20]}  a4 {[%clk 0:01:40]} 21. Rfd1 {[%clk 0:01:10]}  axb3 {[%clk 0:01:38]} 22. axb3 {[%clk 0:01:08]}  Ne4 {[%clk 0:01:16]} 23. Rxd3 {[%clk 0:01:06]}  Rxd3 {[%clk 0:01:16]} 24. Rxd3 {[%clk 0:01:07]}  Ra1+ {[%clk 0:01:15]} 25. Bf1 {[%clk 0:01:06]}  Ra2 {[%clk 0:01:15]} 26. Ne5 {[%clk 0:00:57]}  Nxf2 {[%clk 0:01:04]} 27. Rd7 {[%clk 0:00:52]}  g5 {[%clk 0:00:44]} 28. Nxf7 {[%clk 0:00:45]}  Na5 {[%clk 0:00:32]} 29. Nxg5 {[%clk 0:00:40]}  Ng4 {[%clk 0:00:30]} 30. b4 {[%clk 0:00:36]}  Nxe3 {[%clk 0:00:27]} 31. bxa5 {[%clk 0:00:25]}  Ra1 {[%clk 0:00:27]} 32. Rf7 {[%clk 0:00:24]}  h6 {[%clk 0:00:25]} 33. Rf3 {[%clk 0:00:23]}  Nxf1 {[%clk 0:00:19]} 34. Rxf1 {[%clk 0:00:22]}  Rxa5 {[%clk 0:00:19]} 35. Ne6 {[%clk 0:00:20]}  b5 {[%clk 0:00:18]} 36. Rb1 {[%clk 0:00:20]}  Ra6 {[%clk 0:00:16]} 37. Nd4 {[%clk 0:00:18]}  Rd6 {[%clk 0:00:14]} 38. Nxb5 {[%clk 0:00:18]}  Rb6 {[%clk 0:00:14]} 39. Nc3 {[%clk 0:00:19]}  Rc6 {[%clk 0:00:14]} 40. Ne2 {[%clk 0:00:19]}  Rc2 {[%clk 0:00:13]} 41. Kf2 {[%clk 0:00:17]}  Ra2 {[%clk 0:00:13]} 42. Rb7 {[%clk 0:00:17]}  Rc2 {[%clk 0:00:11]} 43. h4 {[%clk 0:00:17]}  Ra2 {[%clk 0:00:12]} 44. Kf3 {[%clk 0:00:17]}  Ra3+ {[%clk 0:00:12]} 45. Kg4 {[%clk 0:00:16]}  Ra5 {[%clk 0:00:10]} 46. Nf4 {[%clk 0:00:16]}  Kh8 {[%clk 0:00:08]} 47. Rd7 {[%clk 0:00:13]}  Kg8 {[%clk 0:00:08]} 48. Rd5 {[%clk 0:00:13]}  Ra3 {[%clk 0:00:07]} 49. Nh5 {[%clk 0:00:11]}  Kh7 {[%clk 0:00:06]} 50. Rd7+ {[%clk 0:00:09]}  Kh8 {[%clk 0:00:05]} 51. Kf5 {[%clk 0:00:08]}  Ra6 {[%clk 0:00:04]} 52. Nf6 {[%clk 0:00:07]} 1-0


[Site "https://www.chess.com"]

[Event "Titled Tuesday Blitz February 21 Early 2023"]
[White "Melian, Juan Sebastian"]
[Black "Abdilkhair, Abilmansur"]
[WhiteFideId "3706575"]
[BlackFideId "13716417"]
[WhiteElo "2293"]
[BlackElo "2268"]
[Result "0-1"]
[Round "05"]
[TimeControl "180+2"]
[Date "2023.02.21"]
[WhiteClock "0:00:01"]
[BlackClock "0:00:17"]

1. d4 {[%clk 0:02:53]}  Nf6 {[%clk 0:02:59]} 2. c4 {[%clk 0:02:53]}  e6 {[%clk 0:02:58]} 3. Nc3 {[%clk 0:02:53]}  Bb4 {[%clk 0:02:55]} 4. Qc2 {[%clk 0:02:52]}  c5 {[%clk 0:02:52]} 5. dxc5 {[%clk 0:02:53]}  Na6 {[%clk 0:02:52]} 6. a3 {[%clk 0:02:43]}  Bxc5 {[%clk 0:02:48]} 7. Nf3 {[%clk 0:02:38]}  O-O {[%clk 0:02:47]} 8. b4 {[%clk 0:02:30]}  Be7 {[%clk 0:02:46]} 9. Bf4 {[%clk 0:02:29]}  d6 {[%clk 0:02:43]} 10. e3 {[%clk 0:02:29]}  e5 {[%clk 0:02:42]} 11. Bg5 {[%clk 0:02:25]}  Be6 {[%clk 0:02:40]} 12. Rd1 {[%clk 0:02:19]}  Qc8 {[%clk 0:02:25]} 13. Bxf6 {[%clk 0:02:06]}  Bxf6 {[%clk 0:02:22]} 14. Nd5 {[%clk 0:02:06]}  Bxd5 {[%clk 0:02:00]} 15. Rxd5 {[%clk 0:02:07]}  Rd8 {[%clk 0:01:56]} 16. Bd3 {[%clk 0:01:29]}  Nc7 {[%clk 0:01:55]} 17. Bxh7+ {[%clk 0:01:28]}  Kh8 {[%clk 0:01:54]} 18. Bf5 {[%clk 0:01:29]}  Qb8 {[%clk 0:01:45]} 19. Rd2 {[%clk 0:01:29]}  a5 {[%clk 0:01:25]} 20. Kd1 {[%clk 0:01:27]}  axb4 {[%clk 0:01:18]} 21. a4 {[%clk 0:01:24]}  b5 {[%clk 0:01:14]} 22. cxb5 {[%clk 0:00:18]}  Nxb5 {[%clk 0:01:13]} 23. Ke2 {[%clk 0:00:15]}  Nc3+ {[%clk 0:01:05]} 24. Kf1 {[%clk 0:00:15]}  Qb7 {[%clk 0:00:36]} 25. h4 {[%clk 0:00:12]}  Rxa4 {[%clk 0:00:34]} 26. Kg1 {[%clk 0:00:12]}  Ra2 {[%clk 0:00:25]} 27. Qd3 {[%clk 0:00:02]}  e4 {[%clk 0:00:24]} 28. Bxe4 {[%clk 0:00:01]}  Qxe4 {[%clk 0:00:17]} 0-1


[Site "https://www.chess.com"]

[Event "Titled Tuesday Blitz February 21 Early 2023"]
[White "Bilan, Danila"]
[Black "Valle Maytin, Luis Enrique"]
[WhiteFideId "24161918"]
[BlackFideId "3503666"]
[WhiteElo "2303"]
[BlackElo "2241"]
[Result "1-0"]
[Round "05"]
[TimeControl "180+2"]
[Date "2023.02.21"]
[WhiteClock "0:00:14"]
[BlackClock "0:00:10"]

1. d4 {[%clk 0:03:00]}  Nf6 {[%clk 0:02:59]} 2. Nf3 {[%clk 0:02:59]}  d5 {[%clk 0:02:59]} 3. c4 {[%clk 0:02:59]}  c6 {[%clk 0:02:56]} 4. Nc3 {[%clk 0:02:58]}  g6 {[%clk 0:02:51]} 5. cxd5 {[%clk 0:02:54]}  cxd5 {[%clk 0:02:52]} 6. Bg5 {[%clk 0:02:49]}  Bg7 {[%clk 0:02:52]} 7. e3 {[%clk 0:02:45]}  O-O {[%clk 0:02:51]} 8. Bd3 {[%clk 0:02:39]}  Nc6 {[%clk 0:02:50]} 9. Rc1 {[%clk 0:02:35]}  Rb8 {[%clk 0:02:46]} 10. O-O {[%clk 0:02:25]}  Bg4 {[%clk 0:02:44]} 11. h3 {[%clk 0:02:23]}  Bxf3 {[%clk 0:02:41]} 12. Qxf3 {[%clk 0:02:24]}  e6 {[%clk 0:02:37]} 13. Na4 {[%clk 0:01:59]}  h6 {[%clk 0:02:34]} 14. Bh4 {[%clk 0:01:58]}  g5 {[%clk 0:02:30]} 15. Bg3 {[%clk 0:01:58]}  Rc8 {[%clk 0:02:31]} 16. Nc5 {[%clk 0:01:41]}  Qe7 {[%clk 0:02:27]} 17. a3 {[%clk 0:01:22]}  e5 {[%clk 0:00:58]} 18. Bf5 {[%clk 0:00:47]}  Rcd8 {[%clk 0:00:28]} 19. Rfd1 {[%clk 0:00:40]}  Ne8 {[%clk 0:00:14]} 20. Bb1 {[%clk 0:00:20]}  e4 {[%clk 0:00:06]} 21. Qe2 {[%clk 0:00:20]}  f5 {[%clk 0:00:07]} 22. Ba2 {[%clk 0:00:18]}  Nf6 {[%clk 0:00:07]} 23. b4 {[%clk 0:00:13]}  Kh7 {[%clk 0:00:07]} 24. b5 {[%clk 0:00:13]}  Nb8 {[%clk 0:00:06]} 25. Be5 {[%clk 0:00:13]}  b6 {[%clk 0:00:04]} 26. Bxb8 {[%clk 0:00:11]}  Rxb8 {[%clk 0:00:04]} 27. Na6 {[%clk 0:00:12]}  Rbc8 {[%clk 0:00:04]} 28. Qb2 {[%clk 0:00:11]}  Qd7 {[%clk 0:00:03]} 29. a4 {[%clk 0:00:10]}  Rxc1 {[%clk 0:00:03]} 30. Rxc1 {[%clk 0:00:11]}  Rc8 {[%clk 0:00:03]} 31. Rc3 {[%clk 0:00:10]}  Rxc3 {[%clk 0:00:03]} 32. Qxc3 {[%clk 0:00:11]}  f4 {[%clk 0:00:03]} 33. Qc7 {[%clk 0:00:11]}  Qxc7 {[%clk 0:00:03]} 34. Nxc7 {[%clk 0:00:12]}  fxe3 {[%clk 0:00:03]} 35. fxe3 {[%clk 0:00:12]}  Bf8 {[%clk 0:00:03]} 36. Bxd5 {[%clk 0:00:12]}  Bd6 {[%clk 0:00:03]} 37. Bxe4+ {[%clk 0:00:06]}  Nxe4 {[%clk 0:00:04]} 38. Ne8 {[%clk 0:00:06]}  Be7 {[%clk 0:00:03]} 39. Nc7 {[%clk 0:00:06]}  Bd6 {[%clk 0:00:04]} 40. Nd5 {[%clk 0:00:07]}  Nd2 {[%clk 0:00:04]} 41. Nc3 {[%clk 0:00:03]}  Nc4 {[%clk 0:00:04]} 42. Kf2 {[%clk 0:00:03]}  Bb4 {[%clk 0:00:04]} 43. Nd5 {[%clk 0:00:03]}  Bd6 {[%clk 0:00:04]} 44. Ke2 {[%clk 0:00:04]}  Kg6 {[%clk 0:00:04]} 45. Nc3 {[%clk 0:00:03]}  Na5 {[%clk 0:00:03]} 46. Kd3 {[%clk 0:00:03]}  Kf5 {[%clk 0:00:03]} 47. Nd5 {[%clk 0:00:03]}  Ke6 {[%clk 0:00:03]} 48. e4 {[%clk 0:00:04]}  Bg3 {[%clk 0:00:03]} 49. Ne3 {[%clk 0:00:04]}  Bf4 {[%clk 0:00:03]} 50. Nf5 {[%clk 0:00:04]}  h5 {[%clk 0:00:04]} 51. Ng7+ {[%clk 0:00:05]}  Kf6 {[%clk 0:00:04]} 52. Nxh5+ {[%clk 0:00:06]}  Kg6 {[%clk 0:00:05]} 53. g4 {[%clk 0:00:06]}  Bd6 {[%clk 0:00:04]} 54. e5 {[%clk 0:00:07]}  Bf8 {[%clk 0:00:04]} 55. d5 {[%clk 0:00:07]}  Nb7 {[%clk 0:00:04]} 56. Kd4 {[%clk 0:00:03]}  Bc5+ {[%clk 0:00:03]} 57. Ke4 {[%clk 0:00:04]}  Be7 {[%clk 0:00:04]} 58. d6 {[%clk 0:00:04]}  Bf8 {[%clk 0:00:01]} 59. Kd5 {[%clk 0:00:04]}  Nc5 {[%clk 0:00:02]} 60. e6 {[%clk 0:00:04]}  Bxd6 {[%clk 0:00:02]} 61. Kxd6 {[%clk 0:00:05]}  Ne4+ {[%clk 0:00:03]} 62. Kd7 {[%clk 0:00:05]}  Nc5+ {[%clk 0:00:03]} 63. Ke7 {[%clk 0:00:06]}  Kh6 {[%clk 0:00:02]} 64. Ng3 {[%clk 0:00:06]}  Kg6 {[%clk 0:00:03]} 65. Nf5 {[%clk 0:00:07]}  Ne4 {[%clk 0:00:03]} 66. Kd8 {[%clk 0:00:06]}  Nf6 {[%clk 0:00:03]} 67. e7 {[%clk 0:00:07]}  Kf7 {[%clk 0:00:02]} 68. Nd6+ {[%clk 0:00:07]}  Ke6 {[%clk 0:00:03]} 69. e8=Q+ {[%clk 0:00:07]}  Nxe8 {[%clk 0:00:02]} 70. Nxe8 {[%clk 0:00:08]}  Kd5 {[%clk 0:00:03]} 71. Nc7+ {[%clk 0:00:08]}  Kc4 {[%clk 0:00:04]} 72. Ne6 {[%clk 0:00:08]}  Kb4 {[%clk 0:00:05]} 73. Nxg5 {[%clk 0:00:09]}  Kxa4 {[%clk 0:00:05]} 74. h4 {[%clk 0:00:10]}  Kxb5 {[%clk 0:00:06]} 75. h5 {[%clk 0:00:11]}  a5 {[%clk 0:00:07]} 76. h6 {[%clk 0:00:12]}  a4 {[%clk 0:00:08]} 77. h7 {[%clk 0:00:12]}  a3 {[%clk 0:00:09]} 78. h8=Q {[%clk 0:00:13]}  a2 {[%clk 0:00:10]} 79. Qa1 {[%clk 0:00:14]} 1-0


[Site "https://www.chess.com"]